bitfinex-derivatives/quotes_ETHF0:USTF0_20240830
["timestamp","ask_amount","ask_price","bid_price","bid_amount"]
[1725016571720,1.83386291,2512.8,2512.7,1.19838512]
[1725016571915,1.83386291,2512.8,2512.7,0.40877512]
[1725016572117,1.83386291,2512.8,2512.5,3.2078]
[1725016572118,0.39792,2512.7,2512.6,0.39793]
[1725016572317,1.13652,2512.7,2512.6,0.80673577]
[1725016572527,3.56131,2512.7,2512.6,0.40880577]
[1725016572724,11.11051867,2512.7,2512.3,0.00596291]
[1725016572922,1.82796,2512.4,2512.3,0.00596291]
[1725016573119,1.82796,2512.4,2512.3,0.41481557]
[1725016573631,1.82796,2512.4,2512.3,0.41481956]
[1725016573918,1.82796,2512.4,2512.3,0.00596291]
[1725016574127,1.82796,2512.4,2512.3,0.4148237]
[1725016575024,1.82796,2512.4,2512.3,0.41482425]
[1725016575329,1.82796,2512.4,2512.3,0.00596291]
[1725016575522,10.35061106,2512.4,2512.3,0.00596291]
[1725016577421,11.34552106,2512.4,2512.3,0.00596291]
[1725016585322,11.71352106,2512.4,2512.3,0.00596291]
[1725016585929,7.73352106,2512.4,2512.3,0.00596291]
[1725016586240,7.73352106,2512.4,2512.3,0.40394291]
[1725016586530,7.73352106,2512.4,2512.3,0.00596291]
[1725016586730,6.73861106,2512.4,2512.3,0.00596291]
[1725016587031,4.94061106,2512.4,2512.3,0.40394291]
[1725016587324,6.37061106,2512.4,2512.3,0.00596291]
[1725016587918,7.36552106,2512.4,2512.3,0.00596291]
[1725016589133,4.94061106,2512.4,2512.3,0.40394291]
[1725016589335,4.94061106,2512.4,2512.3,0.81278486]
[1725016589627,4.94061106,2512.4,2512.3,0.40394291]
[1725016590017,6.37061106,2512.4,2512.3,0.00596291]
[1725016590219,7.36552106,2512.4,2512.3,0.00596291]
[1725016596336,6.37061106,2512.4,2512.3,0.40394291]
[1725016596534,5.97265106,2512.4,2512.3,0.40394291]
[1725016596831,6.37061106,2512.4,2512.3,0.40394291]
[1725016597631,6.37061106,2512.4,2512.3,0.00596291]
[1725016597837,6.37061106,2512.4,2512.3,0.40394291]
[1725016599331,6.37061106,2512.4,2512.3,0.00596291]
[1725016600231,7.36552106,2512.4,2512.3,0.00596291]
[1725016601836,4.54265106,2512.4,2512.3,13.80384291]
[1725016602033,0.00596291,2512.8,2512.7,1.3927]
[1725016602226,0.00596291,2512.8,2512.7,6.20363493]
[1725016602429,0.40386291,2512.8,2512.7,45.56692493]
[1725016602631,0.40386291,2512.8,2512.7,4.3581]
[1725016602632,1.83386291,2512.8,2512.7,4.3581]
[1725016603642,1.83386291,2512.8,2512.7,4.75601]
[1725016603838,1.83386291,2512.8,2512.7,1.54821]
[1725016604140,1.83386291,2512.8,2512.7,0.3912]
[1725016604339,0.99479,2512.7,2512.4,0.76835]
[1725016604535,0.39794,2512.6,2512.5,0.80675831]
[1725016604741,4.86697308,2512.6,2512.4,1.15955]
[1725016604936,0.39795,2512.5,2512.4,1.15955]
[1725016605137,4.86697308,2512.6,2512.5,0.39795]
[1725016605339,6.29697308,2512.6,2512.5,0.39795]
[1725016605836,5.89903308,2512.6,2512.4,1.15955]
[1725016606041,6.29697308,2512.6,2512.4,1.15955]
[1725016606232,0.39795,2512.5,2512.4,1.15955]
[1725016606432,6.29697308,2512.6,2512.4,1.56838003]
[1725016606644,6.29697308,2512.6,2512.5,0.39795]
[1725016606829,5.89903308,2512.6,2512.5,0.80675118]
[1725016607041,5.89903308,2512.6,2512.4,2.58955]
[1725016607350,1.39287,2512.4,2512.3,0.00596291]
[1725016607531,2.82287,2512.4,2512.3,0.00596291]
[1725016608941,1.82796,2512.4,2512.3,0.00596291]
[1725016609643,1.82796,2512.4,2512.3,0.40394291]
[1725016609839,1.82796,2512.4,2512.3,0.00596291]
[1725016611641,1.82796,2512.4,2512.3,0.40394291]
[1725016611942,2.57125,2512.5,2512.4,0.39796]
[1725016612343,6.92012515,2512.5,2512.4,0.75476]
[1725016613246,6.92012515,2512.5,2512.4,0.3568]
[1725016613445,0.39796,2512.4,2512.3,0.40393291]
[1725016613647,0.39796,2512.4,2512.3,0.81276627]
[1725016613838,1.82796,2512.4,2512.3,0.81276627]
[1725016614035,1.82796,2512.4,2512.3,0.40393291]
[1725016614351,2.82287,2512.4,2512.3,0.00596291]
[1725016615640,1.82796,2512.4,2512.3,0.40394291]
[1725016616243,1.82796,2512.4,2512.3,0.81280337]
[1725016616442,6.29359894,2512.4,2512.3,0.81280337]
[1725016616642,6.29359894,2512.4,2512.3,0.40394291]
[1725016617036,6.29359894,2512.4,2512.3,0.81280909]
[1725016617233,7.28850894,2512.4,2512.3,0.41482909]
[1725016617434,7.28850894,2512.4,2512.3,0.00596291]
[1725016618034,7.28850894,2512.4,2512.3,0.41483335]
[1725016618439,4.86359894,2512.4,2512.3,0.81281335]
[1725016619853,0.39795,2512.6,2512.5,0.39794]
[1725016620055,0.39795,2512.5,2512.4,0.76625]
[1725016620354,2.82282,2512.5,2512.4,0.40882771]
[1725016620556,2.38778,2512.4,2512.3,0.00596291]
[1725016620848,13.96540227,2512.4,2512.3,0.00596291]
[1725016622552,15.39540227,2512.4,2512.3,0.00596291]
[1725016624056,17.40540227,2512.4,2512.3,0.00596291]
[1725016628957,0.99523,2511.6,2511.5,3.2078]
[1725016629168,0.99523,2511.6,2511.5,0.40893496]
[1725016629169,4.83333,2511.6,2511.5,0.40893496]
[1725016629352,4.83333,2511.6,2511.5,4.39053496]
[1725016629959,4.83333,2511.6,2511.5,4.39056552]
[1725016630558,4.83333,2511.6,2511.5,3.9816]
[1725016632364,0.3981,2511.5,2511.4,0.39812]
[1725016632564,3.8381,2511.5,2511.4,4.37972]
[1725016632959,3.8381,2511.5,2511.4,4.78867807]
[1725016633168,3.8381,2511.5,2511.4,4.37972]
[1725016634867,4.83337,2511.5,2511.4,3.9816]
[1725016635068,0.39817,2511.2,2510.9,0.9955]
[1725016635366,3.44,2511.0,2510.9,0.3588]
[1725016635564,3.44,2511.0,2510.9,0.757]
[1725016635760,3.44,2511.0,2510.9,4.7394]
[1725016637565,3.83818,2511.0,2510.9,4.7394]
[1725016637763,3.83818,2511.0,2510.9,0.3588]
[1725016638163,5.19424,2511.0,2510.9,4.3412]
[1725016638769,4.19878,2511.0,2510.9,4.3412]
[1725016639070,3.44,2511.0,2510.9,4.7394]
[1725016639258,3.44,2511.1,2511.0,0.39818]
[1725016639461,0.40410291,2511.3,2511.2,0.39815]
[1725016639663,3.84410291,2511.3,2511.2,0.39815]
[1725016639872,0.39815,2511.2,2511.1,0.78616]
[1725016640066,0.39817,2511.1,2511.0,0.39817]
[1725016640266,3.8156,2511.1,2510.9,0.7468]
[1725016640560,3.44,2511.1,2511.0,0.39818]
[1725016641264,3.83817,2511.1,2511.0,0.39818]
[1725016641470,3.44,2511.1,2511.0,0.39818]
[1725016641771,3.83817,2511.1,2511.0,0.39818]
[1725016642668,3.44,2511.1,2510.9,0.7468]
[1725016642872,0.39818,2511.0,2510.9,0.7468]
[1725016643265,1.39364,2511.0,2510.9,3.9824]
[1725016643470,0.3982,2510.9,2510.8,3.60601]
[1725016643671,3.8382,2510.9,2510.8,3.60601]
[1725016643877,3.8382,2510.9,2510.8,7.58841]
[1725016644072,3.8382,2510.9,2510.8,7.1902]
[1725016644671,3.44,2510.9,2510.8,7.58841]
[1725016645173,3.44,2511.1,2510.8,7.1902]
[1725016645373,3.44,2511.2,2511.1,0.39817]
[1725016645569,3.44,2511.2,2511.1,4.38057]
[1725016645872,3.44,2511.2,2511.1,4.75587]
[1725016646078,0.00596291,2511.3,2511.2,0.39815]
[1725016646280,0.00596291,2511.3,2511.2,0.78075]
[1725016646475,1.43596291,2511.3,2511.2,0.78075]
[1725016646672,1.83410291,2511.3,2511.2,0.3826]
[1725016646874,0.39815,2511.2,2511.1,0.3753]
[1725016647079,0.77725,2511.2,2511.1,0.3753]
[1725016647280,0.39818,2511.1,2510.9,0.3982]
[1725016647474,1.43,2511.1,2511.0,1.15608]
[1725016647784,1.82817,2511.1,2511.0,1.15608]
[1725016647976,0.99543,2511.1,2510.8,3.2078]
[1725016648171,6.00724757,2511.1,2510.9,0.3982]
[1725016648374,5.60906757,2511.1,2511.0,0.39818]
[1725016648576,4.17906757,2511.1,2511.0,2.18408]
[1725016648789,0.00596291,2511.3,2511.2,0.39815]
[1725016648969,0.00596291,2511.3,2511.2,6.03134]
[1725016649175,0.00596291,2511.3,2511.2,16.01374]
[1725016649485,0.00596291,2511.3,2511.2,55.81835]
[1725016649980,0.00596291,2511.3,2511.2,54.38835]
[1725016650176,0.00596291,2511.3,2511.2,48.38835]
[1725016650376,1.43596291,2511.3,2511.2,48.38835]
[1725016651480,0.00596291,2511.3,2511.2,48.38835]
[1725016651686,0.00596291,2511.3,2511.2,50.17765]
[1725016652385,0.00596291,2511.3,2511.2,48.74765]
[1725016653077,0.00596291,2511.3,2511.2,7.94765]
[1725016654189,1.43596291,2511.3,2511.2,7.94765]
[1725016654585,0.00596291,2511.3,2511.2,7.94765]
[1725016657199,1.43596291,2511.3,2511.2,3.2078]
[1725016657492,1.43596291,2511.3,2511.2,3.60595]
[1725016658086,1.82466291,2511.3,2511.2,3.60595]
[1725016658996,2.22280291,2511.3,2511.2,3.2078]
[1725016659288,0.39816,2511.2,2511.0,0.39818]
[1725016659486,0.3604,2511.1,2511.0,0.39818]
[1725016660294,1.43,2511.2,2511.1,0.39817]
[1725016661592,1.82466291,2511.3,2511.2,0.39815]
[1725016662085,2.22280291,2511.3,2511.2,0.39815]
[1725016662286,1.82466291,2511.3,2511.2,0.39815]
[1725016664885,1.82466291,2511.3,2511.2,4.38055]
[1725016666197,1.82466291,2511.3,2511.2,5.37594]
[1725016666594,1.82466291,2511.3,2511.2,4.38055]
[1725016666898,1.82466291,2511.3,2511.2,5.37594]
[1725016667698,1.82466291,2511.3,2511.2,8.58374]
[1725016667996,1.82466291,2511.3,2511.2,5.37594]
[1725016668502,1.82466291,2511.3,2511.2,9.98810541]
[1725016668503,0.00596291,2511.3,2511.2,9.98810541]
[1725016668796,0.00596291,2511.3,2511.2,8.21030541]
[1725016669101,0.00596291,2511.3,2511.2,12.05815166]
[1725016669307,0.00596291,2511.3,2511.2,12.05816985]
[1725016670305,0.00596291,2511.3,2511.2,10.62816985]
[1725016670705,0.00596291,2511.3,2511.2,10.21919444]
[1725016670904,0.00596291,2511.3,2511.2,10.62816454]
[1725016671799,1.43596291,2511.3,2511.2,4.78950876]
[1725016672003,1.80246291,2511.3,2511.2,4.78950876]
[1725016672199,1.80246291,2511.3,2511.2,4.38055]
[1725016672414,1.80246291,2511.3,2511.2,4.78953337]
[1725016672604,2.17786291,2511.3,2511.2,4.78953337]
[1725016673305,2.17786291,2511.3,2511.2,5.42965465]
[1725016673704,2.17786291,2511.3,2511.2,5.42965215]
[1725016674100,2.17786291,2511.3,2511.2,0.8071363]
[1725016674307,2.17786291,2511.3,2511.2,5.4296659]
[1725016675518,0.74786291,2511.3,2511.2,5.4296659]
[1725016675720,2.17786291,2511.3,2511.2,5.4296659]
[1725016676212,2.17786291,2511.3,2511.2,1.4472659]
[1725016677415,2.17786291,2511.3,2511.2,1.44727785]
[1725016679223,0.74786291,2511.3,2511.2,1.44727785]
[1725016679410,1.14600291,2511.3,2511.2,1.44727785]
[1725016679605,0.74786291,2511.3,2511.2,1.44727785]
[1725016680615,0.74786291,2511.3,2511.2,0.39815]
[1725016680813,1.14600291,2511.3,2511.2,1.44728357]
[1725016681508,2.57600291,2511.3,2511.2,1.44728357]
[1725016681707,2.57600291,2511.3,2511.2,0.40899685]
[1725016681916,2.57600291,2511.3,2511.2,0.80714685]
[1725016682416,2.17786291,2511.3,2511.2,0.80714685]
[1725016682717,0.74786291,2511.3,2511.2,1.44726966]
[1725016682921,0.74786291,2511.3,2511.2,0.39815]
[1725016683104,0.74786291,2511.3,2511.2,1.44725188]
[1725016683311,0.00596291,2511.3,2511.2,1.44725188]
[1725016683618,1.83410291,2511.3,2511.2,1.44725188]
[1725016683813,1.83410291,2511.3,2511.2,0.80713466]
[1725016684406,1.83410291,2511.3,2511.2,0.40898466]
[1725016684616,2.82945291,2511.3,2511.2,0.40898466]
[1725016685920,1.83410291,2511.3,2511.2,0.80713466]
[1725016686122,1.83410291,2511.3,2511.2,0.40898466]
[1725016686717,1.83410291,2511.3,2511.2,0.80713466]
[1725016686919,1.83410291,2511.3,2511.2,0.40898466]
[1725016687717,1.83410291,2511.3,2511.2,0.80713466]
[1725016688718,1.83410291,2511.3,2511.2,0.40898466]
[1725016688918,1.83410291,2511.3,2511.2,0.80713466]
[1725016689418,0.39816,2511.2,2510.9,3.5656]
[1725016689619,1.82817,2511.1,2511.0,1.44738111]
[1725016690026,1.43,2511.1,2511.0,1.44738111]
[1725016691615,0.7642,2511.2,2511.1,0.39817]
[1725016691827,0.00596291,2511.3,2511.2,0.39815]
[1725016692124,0.00596291,2511.3,2511.2,1.80906111]
[1725016692723,0.00596291,2511.3,2511.2,1.80895357]
[1725016692923,3.61190291,2511.3,2511.2,1.04910357]
[1725016693121,0.40410291,2511.3,2511.2,1.04910357]
[1725016693324,1.83410291,2511.3,2511.2,0.40898531]
[1725016693517,0.00596291,2511.3,2511.2,0.40898531]
[1725016693721,0.00596291,2511.3,2511.2,5.42963969]
[1725016694022,0.00596291,2511.3,2511.2,5.79813969]
[1725016694324,0.00596291,2511.3,2511.2,1.04908969]
[1725016694530,0.00596291,2511.3,2511.2,1.44723969]
[1725016695023,0.00596291,2511.3,2511.2,1.04908969]
[1725016695324,0.00596291,2511.3,2511.2,1.44723969]
[1725016695625,0.40410291,2511.3,2511.2,1.04908969]
[1725016695818,0.76560291,2511.3,2511.2,1.04908969]
[1725016696013,0.76560291,2511.3,2511.1,3.2078]
[1725016696213,0.3853,2511.2,2511.1,3.2078]
[1725016696419,0.3853,2511.2,2511.1,4.25697371]
[1725016696625,1.8153,2511.2,2511.1,4.25697371]
[1725016697024,2.21345,2511.2,2511.1,4.25697371]
[1725016698517,1.8153,2511.2,2511.1,4.65514371]
[1725016698719,0.40410291,2511.3,2511.1,8.63754371]
[1725016698926,0.00596291,2511.3,2511.2,1.04917371]
[1725016699227,0.00596291,2511.3,2511.2,6.85972371]
[1725016699424,0.00596291,2511.3,2511.2,14.24161371]
[1725016699818,0.00596291,2511.3,2511.2,7.24622371]
[1725016700128,0.00596291,2511.3,2511.2,13.24622371]
[1725016700625,0.00596291,2511.3,2511.2,7.24622371]
[1725016700829,0.00596291,2511.3,2511.2,13.24622371]
[1725016701130,0.00596291,2511.3,2511.2,11.81622371]
[1725016701729,1.43596291,2511.3,2511.2,5.42972371]
[1725016701931,0.00596291,2511.3,2511.2,5.42972371]
[1725016702115,0.00596291,2511.3,2511.2,6.85972371]
[1725016702918,0.00596291,2511.3,2511.2,5.42972371]
[1725016703828,0.00596291,2511.3,2511.2,13.85511371]
[1725016704027,0.00596291,2511.3,2511.2,16.29228862]
[1725016705023,0.00596291,2511.3,2511.2,18.28310265]
[1725016705528,0.00596291,2511.3,2511.2,16.29204266]
[1725016706035,0.00596291,2511.3,2511.2,10.29204266]
[1725016706224,1.43596291,2511.3,2511.2,6.82311361]
[1725016706425,1.43596291,2511.3,2511.2,5.42947775]
[1725016707824,0.00596291,2511.3,2511.2,5.42947775]
[1725016708122,0.00596291,2511.3,2511.2,6.85947775]
[1725016708324,0.00596291,2511.3,2511.2,8.8984068]
[1725016708528,0.00596291,2511.3,2511.2,10.29199793]
[1725016708724,0.00596291,2511.3,2511.2,16.23846018]
[1725016709036,0.00596291,2511.3,2511.2,17.28740924]
[1725016709533,0.00596291,2511.3,2511.2,15.89381811]
[1725016709832,6.09957855,2512.5,2512.4,0.39796]
[1725016710029,4.12972615,2512.8,2512.7,0.39791]
[1725016710334,1.43,2512.8,2512.7,0.39791]
[1725016710630,1.43,2512.8,2512.7,0.80668991]
[1725016711221,1.43,2512.8,2512.7,0.39791]
[1725016711639,0.40383291,2513.0,2512.8,0.39788]
[1725016711829,1.43,2512.9,2512.8,3.60568]
[1725016712138,7.71167593,2512.9,2512.8,3.60568]
[1725016712929,11.69087593,2512.9,2512.8,3.60568]
[1725016713439,7.71167593,2512.9,2512.8,3.60568]
[1725016714933,3.44596291,2513.0,2512.9,0.39788]
[1725016716135,0.00596291,2513.0,2512.9,3.83788]
[1725016717534,0.00596291,2513.0,2512.9,8.81179]
[1725016717736,0.00596291,2513.0,2512.9,8.58108]
[1725016720745,0.00596291,2513.0,2512.9,12.78359]
[1725016721140,0.00596291,2513.0,2512.9,19.7783]
[1725016724552,0.00596291,2513.0,2512.9,12.78359]
[1725016724846,0.00596291,2513.0,2512.9,18.78359]
[1725016725043,0.00596291,2513.0,2512.9,11.41238]
[1725016725244,0.00596291,2513.0,2512.9,11.02488]
[1725016725542,0.00596291,2513.0,2512.9,7.04568]
[1725016729941,0.00596291,2513.0,2512.9,8.04039]
[1725016730135,0.00596291,2513.0,2512.9,12.01959]
[1725016735450,0.00596291,2513.0,2512.9,13.399]
[1725016735748,0.00596291,2513.0,2512.9,19.399]
[1725016735953,0.00596291,2513.0,2512.9,21.38843]
[1725016738239,0.3827,2513.5,2513.4,1.39231]
[1725016738436,0.3827,2513.7,2513.6,0.39777]
[1725016738644,0.3827,2513.7,2513.6,3.83777]
[1725016739040,0.3827,2513.7,2513.6,44.63777]
[1725016741647,0.00596291,2513.9,2513.6,49.21284]
[1725016741845,0.00596291,2513.9,2513.8,11.4799]
[1725016742042,0.00596291,2513.9,2513.8,12.47426]
[1725016742247,0.00596291,2513.9,2513.8,16.45186]
[1725016743050,0.00596291,2513.9,2513.8,13.01186]
[1725016743654,0.00596291,2513.9,2513.8,22.45186]
[1725016745259,0.00596291,2513.9,2513.8,19.01186]
[1725016745552,0.00596291,2513.9,2513.8,22.45186]
[1725016749263,0.00596291,2513.9,2513.8,18.0175]
[1725016749756,0.00596291,2513.9,2513.8,15.4575]
[1725016749958,0.00596291,2513.9,2513.8,21.4575]
[1725016750166,0.00596291,2513.9,2513.8,15.4575]
[1725016750658,0.00596291,2513.9,2513.8,7.04554]
[1725016751758,0.00596291,2513.9,2513.8,6.6478]
[1725016752060,0.00596291,2513.9,2513.8,3.83774]
[1725016752851,0.40368291,2513.9,2513.8,3.44]
[1725016753958,4.38128291,2513.9,2513.8,3.44]
[1725016754261,3.98356291,2513.9,2513.8,3.83774]
[1725016754958,3.98356291,2513.9,2513.8,7.04554]
[1725016755161,0.00596291,2513.9,2513.8,7.04554]
[1725016756253,0.00596291,2513.9,2513.8,6.6478]
[1725016756452,4.38128291,2513.9,2513.8,3.44]
[1725016757058,5.37560291,2513.9,2513.8,3.44]
[1725016757253,4.38128291,2513.9,2513.8,3.44]
[1725016758958,4.38128291,2513.9,2513.8,3.83774]
[1725016760159,4.38128291,2513.9,2513.8,3.44]
[1725016760467,4.38128291,2513.9,2513.8,3.83774]
[1725016760852,5.37560291,2513.9,2513.8,3.44]
[1725016761161,5.37560291,2513.9,2513.8,3.83774]
[1725016761459,5.37560291,2513.9,2513.8,3.44]
[1725016761661,5.37560291,2513.9,2513.8,3.83774]
[1725016762063,4.38128291,2513.9,2513.8,3.83774]
[1725016762659,0.00596291,2513.9,2513.8,4.8321]
[1725016763160,0.00596291,2513.9,2513.8,3.83774]
[1725016766663,4.38128291,2513.9,2513.8,3.44]
[1725016767268,0.39774,2513.8,2513.7,3.83775]
[1725016767466,0.78324,2513.8,2513.7,3.83775]
[1725016767662,4.76164,2513.8,2513.7,3.83775]
[1725016768170,5.756,2513.8,2513.7,3.44]
[1725016768469,0.39776,2513.7,2513.6,3.44]
[1725016768664,0.3667,2513.7,2513.6,3.83777]
[1725016769964,0.3667,2513.7,2513.6,4.83221]
[1725016770171,0.3667,2513.7,2513.6,3.83777]
[1725016770470,0.3667,2513.7,2513.6,4.83221]
[1725016771471,0.3667,2513.7,2513.6,3.83777]
[1725016771863,7.7851,2513.7,2513.4,3.5173]
[1725016772066,0.39777,2513.6,2513.4,6.9573]
[1725016772269,0.7448,2513.5,2513.4,3.9151]
[1725016772472,0.7448,2513.5,2513.4,7.3551]
[1725016772672,0.7448,2513.5,2513.4,3.8378]
[1725016773071,1.14259,2513.5,2513.4,3.44]
[1725016773271,0.7448,2513.5,2513.4,3.8378]
[1725016773471,0.7448,2513.5,2513.4,3.44]
[1725016773774,0.7448,2513.5,2513.4,3.8378]
[1725016773974,1.14259,2513.5,2513.4,3.44]
[1725016774368,0.3978,2513.4,2513.3,3.44]
[1725016774770,4.3762,2513.4,2513.3,3.44]
[1725016776074,5.37071,2513.4,2513.3,3.44]
[1725016776262,1.39237,2513.3,2513.2,3.44]
[1725016776461,1.76867,2513.3,2513.2,3.44]
[1725016777080,0.3763,2513.3,2513.2,3.83783]
[1725016777267,0.3763,2513.3,2513.2,4.62011653]
[1725016777470,0.3763,2513.3,2513.2,5.37491069]
[1725016777673,0.3763,2513.3,2513.2,4.96623]
[1725016777873,0.3763,2513.3,2513.2,5.37492569]
[1725016778074,0.3763,2513.3,2513.2,4.96623]
[1725016778272,0.3763,2513.3,2513.2,5.37491573]
[1725016779476,0.3763,2513.3,2513.2,4.22293]
[1725016779682,0.77412,2513.3,2513.2,4.63162048]
[1725016780579,0.3763,2513.3,2513.2,4.63162048]
[1725016781373,0.3763,2513.3,2513.2,4.22293]
[1725016781571,0.3763,2513.3,2513.2,4.63162205]
[1725016781768,0.77412,2513.3,2513.2,4.63162205]
[1725016782182,1.76867,2513.3,2513.2,3.84869205]
[1725016782480,1.76867,2513.3,2513.2,3.44]
[1725016783276,0.39783,2513.2,2513.1,7.04565]
[1725016783478,0.39783,2513.2,2513.1,7.45435086]
[1725016784875,4.81368,2513.5,2513.1,7.05650059]
[1725016785180,0.39782,2513.3,2513.2,4.56152]
[1725016785677,0.39782,2513.3,2513.2,4.97019084]
[1725016785982,0.39782,2513.3,2513.2,4.56152]
[1725016787084,0.39782,2513.3,2513.2,4.91722]
[1725016788087,0.76992,2513.3,2513.2,1.47722]
[1725016790083,0.76992,2513.3,2513.2,0.39782]
[1725016790383,18.57727233,2513.3,2512.8,3.2078]
[1725016790575,3.44,2513.1,2512.8,0.78128]
[1725016790775,0.39788,2512.9,2512.8,0.78128]
[1725016791285,0.78778,2512.9,2512.8,0.78128]
[1725016791486,0.78778,2512.9,2512.8,0.3834]
[1725016791982,0.39793,2512.7,2512.6,3.44]
[1725016792691,0.39793,2512.6,2512.5,3.21376291]
[1725016793886,0.39793,2512.6,2512.5,0.00596291]
[1725016793887,8.81276,2512.6,2512.5,0.00596291]
[1725016794276,8.81276,2512.6,2512.5,3.44596291]
[1725016794277,5.37276,2512.6,2512.5,3.44596291]
[1725016794790,0.39793,2512.6,2512.5,3.44596291]
[1725016796185,0.39793,2512.6,2512.5,3.84391291]
[1725016796486,0.39791,2512.8,2512.5,3.80756291]
[1725016796691,0.78779,2512.9,2512.8,0.3979]
[1725016796892,0.3899,2512.9,2512.8,3.8379]
[1725016797090,4.76698,2512.9,2512.7,3.44]
[1725016797393,0.3979,2512.8,2512.7,3.8379]
[1725016797594,4.22779,2512.9,2512.7,3.8379]
[1725016797792,0.3979,2512.8,2512.7,3.83791]
[1725016798001,4.22779,2512.9,2512.8,0.3979]
[1725016798287,4.22779,2512.9,2512.7,3.8379]
[1725016798492,3.8299,2512.9,2512.8,0.3979]
[1725016798794,4.82461,2512.9,2512.5,0.74866291]
[1725016798982,3.44,2512.6,2512.5,0.00596291]
[1725016799589,3.83793,2512.6,2512.5,0.40391291]
[1725016799791,3.83793,2512.6,2512.5,0.00596291]
[1725016799991,3.83793,2512.6,2512.5,0.40391291]
[1725016800190,0.39793,2512.6,2512.5,0.40391291]
[1725016800587,1.13563,2512.6,2512.5,0.40391291]
[1725016801282,0.3711,2512.6,2512.5,3.84391291]
[1725016801497,3.44,2513.5,2512.8,0.99471]
[1725016801683,0.7377,2513.4,2513.3,0.39781]
[1725016801888,0.7377,2513.4,2513.3,3.83781]
[1725016802089,8.47025755,2513.7,2513.4,0.39779]
[1725016802292,8.47025755,2513.7,2513.2,40.8]
[1725016802293,4.96587,2513.7,2513.5,3.83779]
[1725016802494,4.96587,2513.7,2513.5,3.44]
[1725016802696,8.32977628,2513.6,2513.4,3.83779]
[1725016803002,8.32977628,2513.6,2513.4,3.44]
[1725016803490,8.32977628,2513.6,2513.4,3.8378]
[1725016803891,7.93200628,2513.6,2513.5,3.2078]
[1725016804096,7.93200628,2513.6,2513.4,3.8378]
[1725016804295,7.93200628,2513.6,2513.5,3.2078]
[1725016804594,0.7377,2513.7,2513.6,0.39777]
[1725016804796,0.7377,2513.7,2513.6,3.83777]
[1725016806001,3.44596291,2513.9,2513.6,3.83777]
[1725016806002,0.00596291,2513.9,2513.8,0.39774]
[1725016806193,0.00596291,2513.9,2513.8,3.83774]
[1725016808091,3.44596291,2513.9,2513.7,3.44]
[1725016808402,3.44,2513.7,2513.6,0.39777]
[1725016808606,3.44,2513.7,2513.6,3.60557]
[1725016809188,3.44,2513.8,2513.6,3.60557]
[1725016810092,3.83776,2513.7,2513.5,0.39778]
[1725016810292,0.3708,2513.6,2513.5,3.83778]
[1725016810798,0.00596291,2513.9,2513.5,7.61522345]
[1725016811107,0.00596291,2513.9,2513.8,3.83774]
[1725016812399,0.00596291,2513.9,2513.8,4.21714]
[1725016813011,0.00596291,2513.9,2513.8,9.1891]
[1725016813203,0.00596291,2513.9,2513.8,9.59767118]
[1725016813500,0.00596291,2513.9,2513.8,9.1891]
[1725016814105,0.00596291,2513.9,2513.8,9.59766796]
[1725016814511,0.00596291,2513.9,2513.8,9.1891]
[1725016815003,0.00596291,2513.9,2513.8,9.59766903]
[1725016815303,0.00596291,2513.9,2513.8,9.1891]
[1725016817906,0.00596291,2513.9,2513.8,12.3969]
[1725016819196,0.00596291,2513.9,2513.8,13.39126]
[1725016819402,0.00596291,2513.9,2513.8,22.83126]
[1725016819597,0.00596291,2513.9,2513.8,23.23980295]
[1725016819804,0.00596291,2513.9,2513.8,22.83126]
[1725016820008,0.00596291,2513.9,2513.8,24.81998]
[1725016820307,0.00596291,2513.9,2513.8,23.23980295]
[1725016821606,0.7132,2514.5,2514.4,1.39176]
[1725016821814,0.7132,2514.5,2514.4,4.83176]
[1725016823402,0.7132,2514.5,2514.4,3.83764]
[1725016824906,0.7132,2514.5,2514.4,3.44]
[1725016825104,0.39764,2514.4,2514.3,3.44]
[1725016825305,0.75944,2514.4,2514.3,3.44]
[1725016825501,1.39182,2514.3,2514.2,0.00596291]
[1725016825702,1.39193,2514.1,2514.0,3.5173]
[1725016825899,4.83193,2514.1,2514.0,3.5173]
[1725016826208,0.39772,2513.9,2513.8,3.44]
[1725016826609,4.73712,2513.9,2513.8,3.44]
[1725016827209,4.73712,2513.9,2513.8,3.83774]
[1725016828712,8.17712,2513.9,2513.8,0.39774]
[1725016830018,0.39774,2513.8,2513.7,7.04554]
[1725016832619,7.81614,2513.8,2513.7,3.2078]
[1725016833022,7.81614,2513.8,2513.7,3.60556]
[1725016836327,0.39776,2513.7,2513.6,0.40373291]
[1725016836511,1.39216,2513.7,2513.6,0.00596291]
[1725016836822,1.39216,2513.7,2513.6,0.40373291]
[1725016837023,5.37056,2513.7,2513.6,0.40373291]
[1725016839722,5.37056,2513.7,2513.6,3.84373291]
[1725016840325,4.37616,2513.7,2513.6,3.84373291]
[1725016843239,5.37056,2513.7,2513.6,3.44596291]
[1725016843533,5.37056,2513.7,2513.6,0.00596291]
[1725016843732,13.4105207,2513.7,2513.6,0.00596291]
[1725016844235,13.4105207,2513.7,2513.6,0.40373291]
[1725016844638,13.4105207,2513.7,2513.6,0.00596291]
[1725016845339,14.4049207,2513.7,2513.6,0.00596291]
[1725016847537,13.4105207,2513.7,2513.6,0.00596291]
[1725016850545,14.4049207,2513.7,2513.6,0.00596291]
[1725016851647,17.6127207,2513.7,2513.6,0.00596291]
[1725016852153,0.99459,2513.2,2513.0,3.2078]
[1725016852342,4.22785,2513.1,2513.0,3.60565]
[1725016852536,4.22785,2513.1,2513.0,4.01436705]
[1725016853645,3.83,2513.1,2513.0,4.01436705]
[1725016853847,3.44,2513.2,2513.1,0.39785]
[1725016854046,0.00596291,2513.3,2513.2,0.39783]
[1725016854246,0.00596291,2513.3,2513.2,5.96023705]
[1725016854549,3.44,2513.8,2513.7,0.39776]
[1725016855050,3.44,2513.8,2513.7,9.21915441]
[1725016855051,4.46020741,2513.8,2513.7,9.21915441]
[1725016855248,6.6478,2514.1,2514.0,0.39771]
[1725016855249,3.2078,2514.1,2514.0,0.39771]
[1725016855550,3.7996,2514.3,2514.2,0.39768]
[1725016855754,3.80556291,2514.3,2514.2,3.83768]